Cogmind - Beta 13 @@@ ROGUE MODE // 2024.04.09 @ 15:07:59 Player: arcadio rl Result: Destroyed by Y-54 Guardian with Gatling Laser Performance ------------- Evolutions (4) 2000 Regions Visited (12) 2400 Robots Destroyed (75) 375 Value Destroyed (2406) 2406 Prototype IDs (9) 180 Alien Tech Used (0) 0 Bonus (825) 825 TOTAL SCORE: 8186 Bonus ------- High Alert Combat Kills 11 Follower Combat Kills 14 Entered DSFs 500 Aligned with FarCom 300 Cogmind --------- Core Integrity 0/850 Matter 28/300 Energy 64/100 System Corruption 13% Temperature Cool (7) Movement Flying (35) Location -6/Factory Parts ------- > --- POWER (1) -------- (None) > --- PROPULSION (5) --- Surge Thruster > --- UTILITY (6) ------ Advanced Signal Interpreter Core Analyzer Core Analyzer Hacking Suite System Shield > --- WEAPON (3) ------- (None) > --- INVENTORY (5) ---- Armored Leg Hardened Heavy Armor Plating Improved Medium Armor Plating Peak State ------------ > --- POWER ------------ Light Fission Core > --- PROPULSION ------- Armored Leg Armored Leg Armored Leg Armored Leg Armored Leg > --- UTILITY ---------- Advanced Heat Sink Advanced Signal Interpreter Core Analyzer Core Analyzer Hacking Suite System Shield > --- WEAPON ----------- Backup Laser VII Coil Gun > --- INVENTORY -------- Light Nuclear Core Armored Leg Hardened Heavy Armor Plating Improved Medium Armor Plating [Rating: 68] Favorites ----------- Power Ion Engine Engine Ion Engine Power Core Enhanced Nuclear Core Propulsion Armored Treads Treads Armored Treads Leg Armored Leg Wheel Wheel Hover Unit Backup Propulsion I Flight Unit VTOL Module Utility Large Storage Unit Device Improved Heat Sink Storage Large Storage Unit Processor Core Analyzer Hackware Hacking Suite Protection Medium Armor Plating Weapon Mace Energy Gun Spread Laser Energy Cannon YOLO Cannon Ballistic Gun Coil Gun Ballistic Cannon Magnetic Acceleration Cannon Impact Weapon Mace Build | -11 -10 -10 -10 -9 -8 -7 -7 -7 -7 -6 -6 -6 ------- Run | Yrd Mat Min Exi Min Mat Fac Was Fac DSF Fac Was Fac Slots Evolved 8 | . . . . . 4 2 . . . 2 . . Power . | . . . . . . . . . . . . . Propulsion 3 | . . . . . 2 1 . . . . . . Utility 4 | . . . . . 2 1 . . . 1 . . Weapon 1 | . . . . . . . . . . 1 . . Parts Attached 99 | 6 8 2 . 5 23 11 1 13 . 3 . 27 Power 13 | 1 1 . . . 4 . . 1 . . . 6 Engine 7 | 1 1 . . . 4 . . . . . . 1 Core 6 | . . . . . . . . 1 . . . 5 Reactor . | . . . . . . . . . . . . . Propulsion 38 | 2 . 2 . 1 10 5 . 3 . . . 15 Treads 19 | 2 . 2 . 1 8 5 . . . . . 1 Leg 7 | . . . . . . . . 2 . . . 5 Wheel 2 | . . . . . 2 . . . . . . . Hover . | . . . . . . . . . . . . . Flight 10 | . . . . . . . . 1 . . . 9 Utility 28 | 1 2 . . 4 5 4 1 7 . 2 . 2 Device 8 | . . . . . 2 1 1 2 . 1 . 1 Storage 3 | 1 1 . . . 1 . . . . . . . Processor 6 | . . . . 1 . . . 3 . 1 . 1 Hackware 2 | . . . . . . . . 2 . . . . Protection 9 | . 1 . . 3 2 3 . . . . . . Artifact . | . . . . . . . . . . . . . Weapon 20 | 2 5 . . . 4 2 . 2 . 1 . 4 Energy Gun 5 | 2 2 . . . . . . . . . . 1 Energy Cannon 3 | . . . . . 2 . . 1 . . . . Ballistic Gun 3 | . . . . . . . . . . . . 3 Ballistic Cannon 1 | . . . . . . . . . . 1 . . Launcher . | . . . . . . . . . . . . . Special Weapon . | . . . . . . . . . . . . . Impact Weapon 8 | . 3 . . . 2 2 . 1 . . . . Slashing Weapon . | . . . . . . . . . . . . . Piercing Weapon . | . . . . . . . . . . . . . Special Melee Weapon . | . . . . . . . . . . . . . Unidentified Prototypes 4 | . . . . 1 2 . . 1 . . . . Parts Lost 40 | . 1 . . 9 4 6 2 . . . 3 15 Power 7 | . . . . 1 2 . . . . . 1 3 Propulsion 19 | . 1 . . 3 2 3 1 . . . 1 8 Utility 8 | . . . . 4 . 2 1 . . . . 1 Weapon 6 | . . . . 1 . 1 . . . . 1 3 Highest Loss Streak 5 | . 1 . . 5 1 4 2 . . . 3 5 To Critical Strikes . | . . . . . . . . . . . . . Average Slot Usage (%) 80 | . 92 91 100 80 72 84 34 53 84 79 68 74 Engine 7 | . 14 14 14 7 6 7 2 . . . . . Treads 20 | . 22 20 28 15 20 37 13 . . . . 1 Leg 1 | . . . . . . . . 7 15 13 8 7 Flight 1 | . . . . . . . . 5 7 6 6 13 Device 3 | . . . . . 8 4 . 7 7 5 4 2 Storage 8 | . 14 14 14 14 9 7 2 . . . . . Processor 5 | . . . . 5 5 . . 14 15 16 20 21 Hackware 1 | . . . . . . . . 2 15 13 13 13 Protection 9 | . 12 14 14 8 7 16 8 . . . . . Energy Gun 2 | . 9 . . . . . . . . . . 1 Energy Cannon 3 | . . . . . 7 5 . 2 7 6 3 . Impact Weapon 10 | . 18 28 28 28 2 3 5 6 7 6 3 . Naked Turns 59 | . . . . . . . 59 . . . . . Heaviest Build 180 | 14 38 36 36 36 170 180 164 18 18 26 26 18 Greatest Support 103 | 40 40 40 40 40 83 103 103 37 37 37 37 80 Greatest Overweight (x) 14 | . 1 1 . 10 14 1 1 . . . 2 5 Average Overweight (x) . | . . . . 1 1 1 . . . . . . Largest Inventory Capacity 30 | 8 15 15 15 15 30 30 30 5 5 5 5 5 Average Capacity 17 | 6 14 15 15 15 21 30 14 5 5 5 5 5 Most Carried 28 | 6 15 15 15 15 20 27 28 4 2 5 5 5 Average Carried 13 | 2 11 14 14 12 14 24 13 2 2 4 5 4 Final Capacity 30 | 8 15 15 15 15 30 30 5 5 5 5 5 5 Final Carried 27 | 6 14 15 15 11 20 27 5 2 2 5 5 4 Class Distribution -------------------- 51% | Mutant 30% | Hauler-Mutant 10% | Hacker-Mutant 4% | Commander-Mutant Dominant Class ---------------- Mutant | -10/Materials Commander-Mutant | -10/Mines Mutant | -10/Exiles Mutant | -9/Mines Mutant | -8/Materials Hauler-Mutant | -7/Factory Hauler-Mutant | -7/Waste Mutant | -7/Factory Hacker-Mutant | -7/DSF Hacker-Mutant | -6/Factory Hacker-Mutant | -6/Waste Hacker-Mutant | -6/Factory Resources | -11 -10 -10 -10 -9 -8 -7 -7 -7 -7 -6 -6 -6 ----------- Run | Yrd Mat Min Exi Min Mat Fac Was Fac DSF Fac Was Fac Matter Collected 1273 | 242 148 43 . 82 217 105 . 107 5 . . 324 Remotely . | . . . . . . . . . . . . . Salvage Created 2257 | . 461 11 . 110 799 521 . . . . . 355 Parts 102 | . 22 1 . . 30 20 . . . . . 29 Haulers Intercepted 5 | . 2 . . . 2 1 . . . . . . Recyclers Shooed . | . . . . . . . . . . . . . Parts Field Recycled . | . . . . . . . . . . . . . Retrieved Matter . | . . . . . . . . . . . . . Parts Self-Destructed . | . . . . . . . . . . . . . Prevented . | . . . . . . . . . . . . . Kills | -11 -10 -10 -10 -9 -8 -7 -7 -7 -7 -6 -6 -6 ------- Run | Yrd Mat Min Exi Min Mat Fac Was Fac DSF Fac Was Fac Combat Hostiles Destroyed 58 | . 10 1 . 4 21 13 . . . . . 9 Melee 7 | . . 1 . 3 2 1 . . . . . . Guns 16 | . 9 . . . . . . . . . . 7 Cannons 6 | . . . . . 6 . . . . . . . AOE 14 | . . . . . 7 5 . . . . . 2 Classes Destroyed 14 | . 6 . . 3 2 2 . . . . . 1 Worker 5 | . . . . 1 4 . . . . . . . Builder 1 | . . . . . . 1 . . . . . . Hauler 5 | . 2 . . . 2 1 . . . . . . Recycler 2 | . 1 . . 1 . . . . . . . . Mechanic 1 | . 1 . . . . . . . . . . . Operator 1 | . . . . . . . . . . . . 1 Watcher 5 | . 3 . . . 1 . . . . . . 1 Swarmer 16 | . 3 1 . . 6 . . . . . . 6 Grunt 28 | . 7 . . . 9 10 . . . . . 2 Sentry 6 | . . . . . 4 1 . . . . . 1 Demolisher 1 | . . . . 1 . . . . . . . . Specialist 2 | . . . . . 2 . . . . . . . Programmer 2 | . . . . . . 2 . . . . . . Assembled 3 | . . . . 3 . . . . . . . . Best Kill Streak 7 | . 4 1 . 2 7 4 . . . . . 4 Combat Bots Only 4 | . 4 1 . 2 4 4 . . . . . 4 Max Kills in Single Turn 2 | . 2 1 . 1 2 2 . . . . . 2 Gunslinging 1 | . 1 . . . . . . . . . . . Exploded 2 | . . . . . 2 2 . . . . . 2 Melee 1 | . . 1 . 1 1 1 . . . . . . Uniques/NPCs Destroyed . | . . . . . . . . . . . . . Combat | -11 -10 -10 -10 -9 -8 -7 -7 -7 -7 -6 -6 -6 -------- Run | Yrd Mat Min Exi Min Mat Fac Was Fac DSF Fac Was Fac Hostile Shots Fired 780 | . 32 9 . 73 151 90 3 . 6 . 3 413 Missed 308 | . 5 2 . 14 56 37 1 . 2 . . 191 Damage Taken 7673 | . 390 103 . 1147 1709 878 102 . 133 . 137 3074 Core 1491 | . 45 10 . 182 298 103 . . . . 93 760 Absorbed by Shields . | . . . . . . . . . . . . . Regen/Repaired (Parts) 522 | . . . . . 522 . . . . . . . Core Remaining (%) 46 | 100 . . . 5 45 . . . 37 . . . Volleys Fired 114 | . 41 . . . 27 14 . . . . . 32 Largest 3 | . 2 . . . 1 1 . . . . . 3 Hottest 130 | . 130 . . . 100 100 . . . . . 76 Shots Fired 173 | . 80 . . . 27 13 . . . . 1 52 Gun 132 | . 80 . . . . . . . . . . 52 Cannon 41 | . . . . . 27 13 . . . . 1 . Launcher . | . . . . . . . . . . . . . Special . | . . . . . . . . . . . . . Kinetic 31 | . . . . . . . . . . . . 31 Thermal 109 | . 54 . . . 27 13 . . . . . 15 Explosive . | . . . . . . . . . . . . . Electromagnetic 33 | . 26 . . . . . . . . . 1 6 Robot Hit Streak 11 | . 11 . . . 3 3 . . . . . 4 Robot Miss Streak 9 | . 9 . . . 3 4 . . . . 1 3 Penetration Max . | . . . . . . . . . . . . . Secondary Targets 1 | . 1 . . . . . . . . . . . Max Gunslinging Chain 1 | . 1 . . . . . . . . . . . Shots Hit Robots 153 | . 71 1 . 11 29 17 . 1 . . . 23 Core Hits 104 | . 51 . . 1 24 11 . . . . . 17 Critical Kills 7 | . . . . . 1 5 . . . . . 1 Critical Parts Destroyed 9 | . 1 . . 2 4 2 . . . . . . Critical Strikes 16 | . 1 . . 2 5 7 . . . . . 1 Meltdown 6 | . . . . . 1 5 . . . . . . Destroy 1 | . . . . . . . . . . . . 1 Smash 9 | . 1 . . 2 4 2 . . . . . . Melee Attacks 68 | . 7 2 . 18 24 15 . 2 . . . . Impact 68 | . 7 2 . 18 24 15 . 2 . . . . Slashing . | . . . . . . . . . . . . . Piercing . | . . . . . . . . . . . . . Sneak Attacks 5 | . . . . 2 2 . . 1 . . . . Combat Hostiles . | . . . . . . . . . . . . . Follow-up Attacks 6 | . . . . 2 2 2 . . . . . . Damage Inflicted 7413 | . 942 42 . 474 3272 2135 . 74 . . . 474 Guns 1136 | . 734 . . . . . . . . . . 402 Cannons 1920 | . . . . . 1143 777 . . . . . . Explosions 2607 | . 91 . . . 1500 956 . . . . . 60 Melee 1738 | . 117 42 . 474 629 402 . 74 . . . . Ramming 12 | . . . . . . . . . . . . 12 Kinetic 195 | . . . . . . . . . . . . 195 Thermal 5095 | . 492 . . . 2643 1733 . . . . . 227 Explosive 91 | . 91 . . . . . . . . . . . Electromagnetic 282 | . 242 . . . . . . . . . . 40 Impact 1738 | . 117 42 . 474 629 402 . 74 . . . . Slashing . | . . . . . . . . . . . . . Piercing . | . . . . . . . . . . . . . Highest Corruption 13 | . 6 6 6 8 . 5 10 10 . . 8 13 Average Corruption 6 | . 5 6 6 6 . 4 9 4 . . 8 8 Corruption Purged 10 | . . . . . . . . 10 . . . . Corruption Blocked . | . . . . . . . . . . . . . Effects 131 | . 40 18 6 17 . 4 3 3 . . 2 38 Message Errors 31 | . 10 5 . 4 . 2 1 . . . 1 8 Matter Fused 29 | . 7 3 2 6 . . . 1 . . . 10 Heat Flow Errors 18 | . 3 3 2 3 . . . 2 . . . 5 Energy Discharges 14 | . 8 2 1 . . 2 . . . . . 1 Parts Rejected 3 | . 1 . . . . . . . . . . 2 Parts Fused 2 | . 1 . . . . . . . . . . 1 Data Loss (minor) 12 | . 4 2 . 2 . . . . . . . 4 Data Loss (major) 7 | . 3 1 1 1 . . . . . . . 1 Misfires 4 | . 1 . . . . . . . . . 1 2 Alerts 7 | . 2 2 . 1 . . 1 . . . . 1 Misdirections 2 | . . . . . . . 1 . . . . 1 Weapon Failures 2 | . . . . . . . . . . . . 2 Overload Shots . | . . . . . . . . . . . . . Overflow Damage 1192 | . 69 22 . 218 526 327 . . . . . 30 Projectiles 442 | . . . . . 263 179 . . . . . . Explosions 140 | . 24 . . . 73 13 . . . . . 30 Melee 610 | . 45 22 . 218 190 135 . . . . . . Knockbacks 6 | . 1 . . . 3 1 . 1 . . . . Impact 6 | . 1 . . . 3 1 . 1 . . . . Kinetic . | . . . . . . . . . . . . . Secondary . | . . . . . . . . . . . . . Self-Inflicted Damage 804 | . 92 . . . 513 197 . . . . . 2 Shots 11 | . 1 . . . 7 3 . . . . . . Rammed 2 | . . . . . . . . . . . . 2 Targets Rammed 6 | . . . . . . . . . . . . 6 Kicked 4 | . . . . . . . . . . . . 4 Crushed . | . . . . . . . . . . . . . Highest Temperature 466 | . 466 254 261 264 233 88 . 174 . . . 387 Average Temperature 142 | . 171 116 114 109 53 29 . 81 . . . 148 Received Heat Transfer 1247 | . 141 6 . 200 441 123 . . . . . 336 Effects 5 | . 4 . . . . . . . . . . 1 Shutdowns 3 | . 2 . . . . . . . . . . 1 Energy Bleed 1 | . 1 . . . . . . . . . . . Interference 1 | . 1 . . . . . . . . . . . Siege Activations . | . . . . . . . . . . . . . Robots Corrupted . | . . . . . . . . . . . . . Combat Hostiles . | . . . . . . . . . . . . . Parts Fried 8 | . 3 1 . 1 3 . . . . . . . Impact Corruptions 26 | . 2 1 . 6 10 7 . . . . . . Robots Melted 6 | . . . . . 1 5 . . . . . . Combat Hostiles 6 | . . . . . 1 5 . . . . . . Parts Melted 12 | . . . . . 6 5 . . . . . 1 Heat Transferred 4973 | . 620 . . . 2480 1490 . . . . . 383 Parts Sabotaged . | . . . . . . . . . . . . . Parts Stolen . | . . . . . . . . . . . . . Parts Stripped . | . . . . . . . . . . . . . Power Chain Reactions . | . . . . . . . . . . . . . Alert | -11 -10 -10 -10 -9 -8 -7 -7 -7 -7 -6 -6 -6 ------- Run | Yrd Mat Min Exi Min Mat Fac Was Fac DSF Fac Was Fac Peak Influence 437 | . 311 81 . 30 437 271 85 60 57 33 26 422 Initial 70 | . . . . . . 62 70 56 42 29 11 . Average 121 | . 91 22 . 4 182 103 75 56 42 31 9 240 Maximum Alert Level 2 | . 1 . . . 2 1 . . . . . 2 Low Security (%) 78 | 100 94 100 . 100 65 86 100 100 100 100 100 27 Level 1 19 | . 5 . . . 28 13 . . . . . 71 Level 2 1 | . . . . . 5 . . . . . . . Level 3 . | . . . . . . . . . . . . . Level 4 . | . . . . . . . . . . . . . Level 5 . | . . . . . . . . . . . . . High Security . | . . . . . . . . . . . . . Max Security . | . . . . . . . . . . . . . Squads Dispatched 18 | . 2 . . . 4 6 . . . . . 6 Investigation 5 | . 2 . . . 2 1 . . . . . . Extermination 3 | . . . . . . 2 . . . . . 1 Reinforcement 10 | . . . . . 2 3 . . . . . 5 Assault . | . . . . . . . . . . . . . Garrison . | . . . . . . . . . . . . . Intercept . | . . . . . . . . . . . . . Searches Triggered . | . . . . . . . . . . . . . Construction Impeded . | . . . . . . . . . . . . . Haulers Reinforced 1 | . . . . . . 1 . . . . . . Active Scanning Responses . | . . . . . . . . . . . . . Cargo Convoy Interrupts 1 | . . . . . . . . . . . . 1 Stealth | -11 -10 -10 -10 -9 -8 -7 -7 -7 -7 -6 -6 -6 --------- Run | Yrd Mat Min Exi Min Mat Fac Was Fac DSF Fac Was Fac Distress Signals 6 | . 2 . . . 1 1 . . . . . 2 Communications Jammed . | . . . . . . . . . . . . . Distress Signals . | . . . . . . . . . . . . . Times Spotted 151 | . 21 3 . 8 35 19 6 . 2 . 6 51 Peak Tracking Total 12 | . 4 3 . 4 4 4 6 . 2 . 6 12 Tactical Retreats 27 | . 4 . . 1 10 . . . 1 . . 11 Traps | -11 -10 -10 -10 -9 -8 -7 -7 -7 -7 -6 -6 -6 ------- Run | Yrd Mat Min Exi Min Mat Fac Was Fac DSF Fac Was Fac Traps Triggered 9 | . 6 . . . . 1 . . . 1 . 1 Indirectly . | . . . . . . . . . . . . . Trap Hack Attempts . | . . . . . . . . . . . . . Triggered . | . . . . . . . . . . . . . Disarmed . | . . . . . . . . . . . . . Reprogrammed . | . . . . . . . . . . . . . Reused . | . . . . . . . . . . . . . Traps Extracted . | . . . . . . . . . . . . . Installed . | . . . . . . . . . . . . . Triggered 3 | . . . . . . 1 . . . . . 2 Machines | -11 -10 -10 -10 -9 -8 -7 -7 -7 -7 -6 -6 -6 ---------- Run | Yrd Mat Min Exi Min Mat Fac Was Fac DSF Fac Was Fac Machines Disabled 15 | . 1 . . . 8 2 . . . . . 4 Max in Single Turn 3 | . 1 . . . 2 2 . . . . . 3 Machines Repaired . | . . . . . . . . . . . . . Machines Dismantled . | . . . . . . . . . . . . . Machines Sabotaged . | . . . . . . . . . . . . . Overloaded Fab Kills . | . . . . . . . . . . . . . Hacking | -11 -10 -10 -10 -9 -8 -7 -7 -7 -7 -6 -6 -6 --------- Run | Yrd Mat Min Exi Min Mat Fac Was Fac DSF Fac Was Fac Machines Accessed 33 | . 8 1 1 . 9 4 . 3 . 1 . 6 Terminals 22 | . 8 . . . 6 1 . 2 . 1 . 4 Fabricators 2 | . . . . . . 2 . . . . . . Repair Stations 4 | . . . . . 2 1 . . . . . 1 Recycling Units 1 | . . . . . . . . 1 . . . . Scanalyzers 2 | . . . . . 1 . . . . . . 1 Garrison Access . | . . . . . . . . . . . . . Total Hacks 125 | . 29 1 23 . 42 8 . 5 . 2 . 15 Successful 84 | . 10 1 23 . 33 5 . 2 . 1 . 9 Failed 40 | . 18 . . . 9 3 . 3 . 1 . 6 Catastrophic 8 | . 1 . . . 2 1 . 2 . . . 2 Database Lockouts 1 | . 1 . . . . . . . . . . . Manual 52 | . 25 . 1 . 17 1 . . . . . 8 Terminals 66 | . 29 . . . 22 1 . 2 . 2 . 10 Fabricators 5 | . . . . . . 5 . . . . . . Repair Stations 15 | . . . . . 12 2 . . . . . 1 Recycling Units 3 | . . . . . . . . 3 . . . . Scanalyzers 12 | . . . . . 8 . . . . . . 4 Garrison Access . | . . . . . . . . . . . . . Terminal Hacks 45 | . 6 1 23 . 11 . . 1 . 1 . 2 Record 23 | . . . 23 . . . . . . . . . Robot Analysis 1 | . 1 . . . . . . . . . . . Prototype ID Bank 2 | . 1 . . . 1 . . . . . . . Open Door 1 | . . 1 . . . . . . . . . . Open DSF 2 | . . . . . . . . 1 . 1 . . Branch Access Points 1 | . . . . . . . . . . . . 1 Terminal Index 2 | . 1 . . . 1 . . . . . . . Alert Level 2 | . . . . . 1 . . . . . . 1 Unreport Threat 3 | . . . . . 3 . . . . . . . Locate Traps 2 | . 1 . . . 1 . . . . . . . Dispatch Records 1 | . . . . . 1 . . . . . . . Patrol Status 1 | . . . . . 1 . . . . . . . Recall Investigation 1 | . 1 . . . . . . . . . . . Registered Components 3 | . 1 . . . 2 . . . . . . . Fabricator Hacks 4 | . . . . . . 4 . . . . . . Network Status 1 | . . . . . . 1 . . . . . . Load Schematic 2 | . . . . . . 2 . . . . . . Build 1 | . . . . . . 1 . . . . . . Repair Station Hacks 14 | . . . . . 12 1 . . . . . 1 Scan Component 6 | . . . . . 5 1 . . . . . . Repair 5 | . . . . . 5 . . . . . . . Refit 3 | . . . . . 2 . . . . . . 1 Recycling Unit Hacks 1 | . . . . . . . . 1 . . . . Report Inventory 1 | . . . . . . . . 1 . . . . Scanalyzer 12 | . . . . . 8 . . . . . . 4 Insert Component 6 | . . . . . 4 . . . . . . 2 Analyze 6 | . . . . . 4 . . . . . . 2 Garrison Access Hacks . | . . . . . . . . . . . . . Unauthorized Hacks 8 | . 4 . . . 2 . . . . . . 2 Terminals 8 | . 4 . . . 2 . . . . . . 2 Assimilate 2 | . 1 . . . . . . . . . . 1 Botnet 5 | . 2 . . . 2 . . . . . . 1 Operators 1 | . 1 . . . . . . . . . . . Fabricators . | . . . . . . . . . . . . . Repair Stations . | . . . . . . . . . . . . . Recycling Units . | . . . . . . . . . . . . . Scanalyzers . | . . . . . . . . . . . . . Garrison Access . | . . . . . . . . . . . . . Data Cores Recovered . | . . . . . . . . . . . . . Used . | . . . . . . . . . . . . . Hacking Detections 28 | . 8 . . . 8 4 . 3 . . . 5 Full Trace Events 4 | . 2 . . . 1 1 . . . . . . Feedback Events . | . . . . . . . . . . . . . Feedback Blocked . | . . . . . . . . . . . . . Robot Schematics Acquired . | . . . . . . . . . . . . . Robots Built . | . . . . . . . . . . . . . Authchips . | . . . . . . . . . . . . . Time . | . . . . . . . . . . . . . Total Robot Build Rating . | . . . . . . . . . . . . . Part Schematics Acquired 6 | . . . . . 4 . . . . . . 2 Parts Built . | . . . . . . . . . . . . . Authchips . | . . . . . . . . . . . . . Time 73 | . . . . . . 73 . . . . . . Total Part Build Rating . | . . . . . . . . . . . . . Parts Repaired 5 | . . . . . 5 . . . . . . . Time 179 | . . . . . 179 . . . . . . . Parts Recycled . | . . . . . . . . . . . . . Recycled Matter . | . . . . . . . . . . . . . Retrieved Matter . | . . . . . . . . . . . . . Retrieved Components . | . . . . . . . . . . . . . Parts Scanalyzed 6 | . . . . . 4 . . . . . . 2 Part Schematics Acquired 6 | . . . . . 4 . . . . . . 2 Parts Damaged 1 | . . . . . 1 . . . . . . . Bothacking | -11 -10 -10 -10 -9 -8 -7 -7 -7 -7 -6 -6 -6 ------------ Run | Yrd Mat Min Exi Min Mat Fac Was Fac DSF Fac Was Fac Used RIF Installer . | . . . . . . . . . . . . . Robots Hacked . | . . . . . . . . . . . . . Non-combat . | . . . . . . . . . . . . . Combat . | . . . . . . . . . . . . . Robot Hacks Applied . | . . . . . . . . . . . . . Relay Couplers Released . | . . . . . . . . . . . . . Fabnet Peak Effective % . | . . . . . . . . . . . . . Robots Rewired . | . . . . . . . . . . . . . Allies Hacked . | . . . . . . . . . . . . . Hacks Repelled . | . . . . . . . . . . . . . Allies | -11 -10 -10 -10 -9 -8 -7 -7 -7 -7 -6 -6 -6 -------- Run | Yrd Mat Min Exi Min Mat Fac Was Fac DSF Fac Was Fac Total Allies 4 | . 1 3 . . . . . . . . . . Largest Group 4 | . 1 4 3 3 . . . . . . . . Highest-Rated Group 50 | . 10 50 40 40 . . . . . . . . Highest-Rated Ally 16 | . 10 16 16 16 . . . . . . . . Total Orders . | . . . . . . . . . . . . . Ally Attacks 6 | . . 3 . 3 . . . . . . . . Total Damage 70 | . . 34 . 36 . . . . . . . . Kills 2 | . . 2 . . . . . . . . . . Allies Corrupted . | . . . . . . . . . . . . . Allies Melted . | . . . . . . . . . . . . . Intel | -11 -10 -10 -10 -9 -8 -7 -7 -7 -7 -6 -6 -6 ------- Run | Yrd Mat Min Exi Min Mat Fac Was Fac DSF Fac Was Fac Robot Analysis Total 1 | . 1 . . . . . . . . . . . Derelict Logs Recovered 1 | . . 1 . . . . . . . . . . Drone Launches . | . . . . . . . . . . . . . Drone Recoveries . | . . . . . . . . . . . . . Exploration | -11 -10 -10 -10 -9 -8 -7 -7 -7 -7 -6 -6 -6 ------------- Run | Yrd Mat Min Exi Min Mat Fac Was Fac DSF Fac Was Fac Turns Passed 9336 | 115 1746 661 350 562 2528 1730 109 278 38 129 74 1016 Spaces Moved 5079 | 62 823 325 217 229 808 633 140 212 30 94 80 1426 Core 407 | 2 . . . 58 29 . 123 32 . . 43 120 Treads 2866 | 60 823 325 217 171 620 633 17 . . . . . Legs 553 | . . . . . . . . 180 30 94 37 212 Wheels 84 | . . . . . 84 . . . . . . . Hover 75 | . . . . . 75 . . . . . . . Flight 1094 | . . . . . . . . . . . . 1094 Fastest Speed 23 | 50 160 160 160 160 95 246 50 50 130 130 50 23 Average Speed 161 | 156 186 197 160 223 256 247 73 117 130 130 92 59 Slowest Speed 750 | 160 240 240 160 550 750 248 246 130 130 130 150 300 Overloaded Moves . | . . . . . . . . . . . . . Propulsion Burnouts . | . . . . . . . . . . . . . Robots Hopped 7 | . . . . . . . . . . . . 7 Cave-ins Triggered . | . . . . . . . . . . . . . Exploration Rate (%) 45 | 6 97 76 60 51 43 20 78 5 37 2 87 31 Regions Visited 12 Branch Regions 3 Pre-discovered Areas 1 | . . . 1 . . . . . . . . . Known Exits Taken 1 | . . . . . . . . 1 . . . . Unknown Exits Taken 6 | 1 1 1 1 1 1 . . . . . . . Scrap Searched 5 | . . 3 . 2 . . . . . . . . Spaces Dug 59 | . . . . . 59 . . . . . . . Terrain Destroyed 534 | . 41 . . . 356 100 . . . . . 37 Melee . | . . . . . . . . . . . . . Projectile 19 | . . . . . 14 5 . . . . . . AOE 515 | . 41 . . . 342 95 . . . . . 37 Terrain Rammed . | . . . . . . . . . . . . . Walls Destroyed . | . . . . . . . . . . . . . Machines Disabled . | . . . . . . . . . . . . . Actions | -11 -10 -10 -10 -9 -8 -7 -7 -7 -7 -6 -6 -6 --------- Run | Yrd Mat Min Exi Min Mat Fac Was Fac DSF Fac Was Fac Total 5844 | 77 945 341 221 253 1148 727 145 234 29 101 79 1544 Wait 369 | 4 44 10 . 3 227 39 . 1 . . . 41 Move 5057 | 61 822 324 216 228 807 633 139 211 29 94 79 1414 Hop 5 | . . . . . . . . . . . . 5 Pick Up 79 | 6 12 2 2 1 26 15 3 4 . 3 . 5 Fast Attach 64 | 6 6 1 . . 16 1 1 8 . 3 . 22 Attach 26 | . . . . 5 4 8 . 5 . . . 4 Detach 13 | . 2 . . . 6 . . 1 . . . 4 Swap 9 | . 2 1 . . 3 2 . . . . . 1 Drop 44 | . 10 2 3 . 12 2 2 2 . 1 . 10 Fire 114 | . 41 . . . 27 14 . . . . . 32 Melee 58 | . 6 1 . 16 20 13 . 2 . . . . Ram 2 | . . . . . . . . . . . . 2 Kick 4 | . . . . . . . . . . . . 4 Crush . | . . . . . . . . . . . . . Escape Stasis . | . . . . . . . . . . . . . Rewire . | . . . . . . . . . . . . . Trap . | . . . . . . . . . . . . . Miscellaneous . | . . . . . . . . . . . . . Route ------- -11/Scrapyard -10/Materials (discovered 5 exits: [*Mat x3] / *Min x2) -10/Mines (discovered 3 exits: [*Mat x2] / *Exi) -10/Exiles -9/Mines -8/Materials -7/Factory (discovered 2 exits: *Fac / [*Low]) -7/Waste -7/Factory -7/DSF -6/Factory -6/Waste -6/Factory (discovered 4 exits: Low x2 / Ext x2) History --------- Turn | Location | Event 39 | -11/Scrapyard | Discovered new exit (range 16) 116 | -11/Scrapyard | Entered Materials 174 | -10/Materials | Discovered new exit (range 7) 302 | -10/Materials | Build established: Mutant 632 | -10/Materials | Discovered new exit (range 13) 938 | -10/Materials | Central database locked down 1050 | -10/Materials | Discovered new exit (range 10) 1440 | -10/Materials | Discovered new exit (range 15) 1679 | -10/Materials | Discovered new exit (range 15) 1862 | -10/Materials | Entered Mines 1862 | -10/Mines | Accompanied by 1 ally 1949 | -10/Mines | Discovered new exit (range 9) 2059 | -10/Mines | Assisted by bots powering up and referring to "LRC-V3" 2253 | -10/Mines | Discovered new exit (range 10) 2373 | -10/Mines | Build established: Commander-Mutant 2447 | -10/Mines | Learned Materials trap positions 2469 | -10/Mines | Met a Derelict who couldn't figure out how to use a Trap Extractor 2499 | -10/Mines | Deemed a non-threat by the Exiles lab entrance 2501 | -10/Mines | Discovered new exit (range 5) 2523 | -10/Mines | Entered Exiles 2523 | -10/Exiles | Accompanied by 3 allies 2563 | -10/Exiles | Met 8R-AWN 2589 | -10/Exiles | Met EX-HEX 2637 | -10/Exiles | Met EX-BIN 2656 | -10/Exiles | Aligned with FarCom system 2658 | -10/Exiles | Given EX-Vault access code 2695 | -10/Exiles | Opened EX-Vault 2702 | -10/Exiles | Found Prototype Processor 2720 | -10/Exiles | Found Prototype Energy Cannon 2753 | -10/Exiles | Warned to stay clear of 0b10 Research branches 2763 | -10/Exiles | Exiles lab attacked by MAIN.C 2773 | -10/Exiles | Build established: Mutant 2807 | -10/Exiles | Learned location of Zion (-7) 2855 | -10/Exiles | Discovered new exit (range 12) 2873 | -10/Exiles | Stole two prototypes: YOLO Cannon, Modified TNC 2873 | -10/Exiles | Entered Mines 2873 | -9/Mines | Accompanied by 3 allies 2953 | -9/Mines | Assembled infested the area 3084 | -9/Mines | Lost 4 allies 3203 | -9/Mines | Identified Modified TNC 3204 | -9/Mines | Core integrity fell below 50% 3231 | -9/Mines | Lost 5 parts (1p2n2u) 3384 | -9/Mines | Discovered new exit (range 10) 3413 | -9/Mines | Core integrity fell below 20% 3435 | -9/Mines | Entered Materials 3435 | -8/Materials | Evolved 4 slots: Propulsion x2, Utility x2 3436 | -8/Materials | Loaded intel: 24 trap records 3436 | -8/Materials | Identified YOLO Cannon 3842 | -8/Materials | Repaired Mace 4219 | -8/Materials | Core integrity fell below 50% 4477 | -8/Materials | Repaired Imp. Light Armor Plating 5235 | -8/Materials | Build established: Hauler-Mutant 5430 | -8/Materials | Repaired Imp. Treads 5458 | -8/Materials | Repaired Lgt. Treads 5510 | -8/Materials | Repaired Hvy. Ion Engine? 5889 | -8/Materials | Discovered new exit (range 16) 5963 | -8/Materials | Entered Factory 5963 | -7/Factory | Evolved 2 slots: Propulsion x1, Utility x1 5965 | -7/Factory | FarCom data flow suspended 6278 | -7/Factory | Discovered new exit (range 9) 7296 | -7/Factory | Core integrity fell below 50% 7326 | -7/Factory | Lost 4 parts (2n1u1w) 7435 | -7/Factory | Discovered new exit (range 11) 7693 | -7/Factory | Sucked down chute 7693 | -7/Factory | Entered Waste 7708 | -7/Waste | EMP discharged 7708 | -7/Waste | System corruption reached 10% 7717 | -7/Waste | Spotted C-40 Crusher 7733 | -7/Waste | Crushed by Compactor (1 part destroyed, 2 dropped) 7736 | -7/Waste | Crushed by Compactor (1 part destroyed, 2 dropped) 7736 | -7/Waste | Released all parts (6) 7747 | -7/Waste | Spotted C-40 Crusher 7754 | -7/Waste | Spotted C-40 Crusher 7754 | -7/Waste | Spotted C-40 Crusher 7763 | -7/Waste | Spotted C-40 Crusher 7767 | -7/Waste | Spotted C-40 Crusher 7785 | -7/Waste | Discovered new exit (range 16) 7802 | -7/Waste | Entered Factory 8046 | -7/Factory | Build established: Mutant 8079 | -7/Factory | Identified exit to DSF 8080 | -7/Factory | Entered DSF 8099 | -7/DSF | Discovered new exit (range 16) 8114 | -7/DSF | Additional patrols routed to DSF 8118 | -7/DSF | Entered Factory 8118 | -6/Factory | Evolved 2 slots: Utility x1, Weapon x1 8247 | -6/Factory | Sucked down chute 8247 | -6/Factory | Entered Waste 8255 | -6/Waste | Spotted C-40 Crusher 8255 | -6/Waste | Spotted C-40 Crusher 8262 | -6/Waste | EMP discharged 8279 | -6/Waste | Spotted C-40 Crusher 8286 | -6/Waste | Spotted C-40 Crusher 8287 | -6/Waste | Crushed by Compactor (1 part destroyed, 1 dropped) 8293 | -6/Waste | Spotted C-40 Crusher 8295 | -6/Waste | Crushed by Compactor (1 part destroyed, 2 dropped) 8299 | -6/Waste | Spotted C-40 Crusher 8301 | -6/Waste | Crushed by Compactor (1 part destroyed, 1 dropped) 8312 | -6/Waste | Discovered new exit (range 16) 8319 | -6/Waste | Identified exit to Factory 8321 | -6/Waste | Entered Factory 8332 | -6/Factory | Lost 3 parts (1p1n1w) 8361 | -6/Factory | Build established: Hacker-Mutant 8432 | -6/Factory | Lost 3 parts (1p1n1w) 8532 | -6/Factory | Lost 4 parts (4n) 8720 | -6/Factory | Identified exit to Lower Caves 8720 | -6/Factory | Identified exit to Extension 9103 | -6/Factory | Core integrity fell below 50% 9139 | -6/Factory | Lost 5 parts (2p1u2w) 9197 | -6/Factory | System corruption reached 10% 9254 | -6/Factory | Lost 3 parts (3n) 9256 | -6/Factory | Cargo convoy interrupted 9269 | -6/Factory | Core integrity fell below 20% 9337 | -6/Factory | Destroyed by Y-54 Guardian with Gatling Laser Last Messages --------------- corruption cleaned. 09243_ Slammed into K-01 Serf. 09245_ Slammed into W-25 Informer. 09245_ Destabilizing: System interference. 09245_ Adv. Signal Interpreter temporarily disabled. 09246_ ALERT: Hostiles spotted, dispatching reinforcements to Terminal F019. 09256_ ALERT: Cargo convoy interrupted, initiating access lockdown. 09274_ System corrupted: Matter fused (-6). 09274_ Acquired Surge Thruster. 09280_ S-27 Virus destroyed. 09288_ Triggered Proton Bomb Trap. 09288_ A bubble of electromagnetic force engulfs the area. 09288_ T-07 Excavator destroyed. 09288_ Door malfunctions. 09318_ System corrupted: Matter fused (-7). 09337_ System corrupted: Energy discharge (-36). Map ----- +----------------------------------------------------+ | ?????????????????????????????????????????????????? | | ???????##################################???###### | | ???????# """ #???# | | ???????# "Y" ##### | | ???????# " " | | ???????# % """ | | ???????+ """ | | ???????# ###########"#"# """ ##### | | ?????### ############### = ###???# | | ?????# # # """ """ #?????#### # | | ######= !# # """ """ #????????# # | | ! # """""????# """ """ #????????# | | |% + """""????# #????????### | | # """""????# """ """ #??????????? | | #### # """""????# """ """ #??????????? | | #??# # ????# """ """ #??????????? | | ^ #??######/##########???# #??????????? | | #??????? ???????????# """ """ #??????????? | | #?????? """??????????# """ """ #??????????? | | #?????? """"" #????????# """ """ #??????????? | | #?????" """"" ######???# #??????????? | | #???? ?# ] ?## """ """ #??????????? | | #???? ! ???# ?# """ """ #??????????? | | #????##+###+???# # """ """ #??????????? | | #??????????????# " "" # #??????????? | | #??????????????# "R"" /@g #??????????? | | #??????????????# """" #Y#############??????????? | | ] #???????????????#######g#??????????????????????? | | #????????????????????? g ??????????????????????? | | #???????????????????? [ ]?????????????????????? | | ????????????>????? ????????????????????? | | ??????????????? ! ????????????????????? | | ?????????????#### #???????????????????? | | ####?????????????????## ##???????????????????? | | ###?????????????????????? ?????????????????????? | | ????????????????????????? ?????????????????????? | | ????????????????????????? #????????????????????? | | ????????????????????????? #????????????????????? | | ????????????????????????? #????????????????????? | | ????????????????????????? #????????????????????? | | ????????????????????????? ?????????????????????? | | ?????????????????????????????????????????????????? | | ?????????????????????????????????????????????????? | | ?????????????????????????????????????????????????? | | ?????????????????????????????????????????????????? | | ?????????????????????????????????????????????????? | | ?????????????????????????????????????????????????? | | ?????????????????????????????????????????????????? | | ?????????????????????????????????????????????????? | | ?????????????????????????????????????????????????? | +----------------------------------------------------+ Best States ------------- Heat Dissipation 56 Coolant Potential 65 Energy Generation 25 Energy Capacity 300 Matter Stores 300 Matter Capacity 300 Sight Range 20 Terrain Scan Density 10 Armor Coverage 525 Evasion (%) 65 Core Analysis 9 Recoil Reduction 5 Offensive Hacking 10 Defensive Hacking 10 Item Schematics ----------------- Imp. Signal Interpreter | -8/Materials | Scanalyzed Missile Launcher | -8/Materials | Scanalyzed Arm. Treads | -8/Materials | Scanalyzed Trap Extractor | -8/Materials | Scanalyzed Prc. Grenade Launcher | -6/Factory | Scanalyzed Hrd. Heavy Armor Plating | -6/Factory | Scanalyzed Robot Schematics ------------------ None Fabricated ------------ Nothing Alien Tech Used ----------------- None Achievements -------------- Below Challenges ------------ None Game ------ Seed DecoderCouplerLattice Manual? 0 Play Time 01:34:33 Cumulative 99.5 hours Start 2024.04.07 @ 00:09:11 End 2024.04.09 @ 15:07:59 Sessions 2 Manual Loads 0 Difficulty Rogue Special Mode None Game No. 74 Rogue 74 Adventurer 0 Explorer 0 Win Type - Total 0 Types 0/0/0/0/0/0/0/0/0 Lore% 48 Gallery% 48 Achievement% 39 Wizard Run 0 Options --------- Layout 1 ASCII 0 Keyboard 1 Movement Numpad Keybinds 0 Fullscreen 1 Font 24/Smallcaps Map View 50x35 Zoom Use 0% Tactical HUD 1 Map Filters NONE Filters NONE Steam 1 RUN: 44300bec-3c29-4386-81b3-0b889f921749